bitfinex-derivatives/quotes_SOLF0:USTF0_20250731
["timestamp","ask_amount","ask_price","bid_price","bid_amount"]
[1754001099047,5.35762263,173.1,173.05,5.779]
[1754001099245,5.35762263,173.12,173.06,3.33]
[1754001099440,6.70762263,173.14,173.06,3.33]
[1754001099640,5.7768,173.13,173.04,3.33]
[1754001099945,6.70762263,173.16,173.06,3.33]
[1754001100141,5.7761,173.15,173.1,5.7773]
[1754001100341,1.35,173.14,173.11,3.33]
[1754001100541,5.35762263,173.16,173.11,3.33]
[1754001100542,1.35,173.13,173.11,3.33]
[1754001100945,108.34,173.23,173.11,3.33]
[1754001101144,1.35,173.14,173.11,3.33]
[1754001101352,1.35,173.14,173.12,3.33]
[1754001102042,5.35762263,173.2,173.02,496.28]
[1754001102043,5.35762263,173.19,173.09,5.35762263]
[1754001102239,6.70762263,173.21,173.12,3.33]
[1754001102548,6.70762263,173.23,173.15,5.7757]
[1754001102850,5.35762263,173.23,173.16,3.33]
[1754001103149,1.35,173.22,173.16,3.33]
[1754001103354,1.35,173.22,173.13,5.35762263]
[1754001103745,1.35,173.22,173.14,3.33]
[1754001103945,1.35,173.2,173.14,3.33]
[1754001104145,1.35,173.16,173.13,3.33]
[1754001104347,5.7759,173.15,173.13,3.33]
[1754001104650,1.35,173.16,173.13,3.33]
[1754001104952,5.7759,173.15,173.13,3.33]
[1754001105653,5.7763,173.14,173.13,3.33]
[1754001106048,5.7768,173.13,173.09,3.33]
[1754001106248,6.70762263,173.15,173.06,3.33]
[1754001106644,5.7767,173.13,173.09,3.33]
[1754001106852,6.70762263,173.15,173.09,3.33]
[1754001107845,5.7772,173.12,173.07,5.7786]
[1754001108054,6.70762263,173.15,173.08,3.33]
[1754001108451,5.7768,173.13,173.08,5.7781]
[1754001108654,5.7768,173.13,173.09,3.33]
[1754001109257,5.35762263,173.17,173.1,3.33]
[1754001109551,1.35,173.18,173.1,3.33]
[1754001109856,5.35762263,173.19,173.11,3.33]
[1754001110555,5.35762263,173.19,173.13,3.33]
[1754001110755,1.35,173.18,173.13,3.33]
[1754001110954,1.35,173.17,173.14,3.33]
[1754001111156,5.776,173.15,173.14,3.33]
[1754001112458,5.7757,173.16,173.15,3.33]
[1754001112652,6.70762263,173.19,173.1,3.33]
[1754001112853,5.7755,173.17,173.14,3.33]
[1754001113053,6.70762263,173.19,173.14,3.33]
[1754001113652,5.7756,173.16,173.14,3.33]
[1754001114254,5.35762263,173.19,173.15,5.7757]
[1754001114558,1.35,173.29,173.16,3.33]
[1754001114855,5.774,173.21,173.16,3.33]
[1754001115054,1.35,173.25,173.16,3.33]
[1754001115951,5.7738,173.22,173.19,3.33]
[1754001116448,399.5225,173.3,173.18,3.33]
[1754001116653,399.5225,173.3,173.16,3.33]
[1754001116654,1.35,173.21,173.16,3.33]
[1754001116854,5.35762263,173.18,173.14,3.33]
[1754001117058,5.7758,173.16,173.15,3.33]
[1754001117856,1.35,173.17,173.12,3.33]
[1754001118256,1.35,173.16,173.13,3.33]
[1754001118650,1.35,173.16,173.02,400.54560259]
[1754001118651,1.36,173.15,173.07,3.31]
[1754001118854,5.35762263,173.14,173.07,3.31]
[1754001119061,1.36,173.18,173.07,3.31]
[1754001119259,6.71762263,173.18,173.07,3.31]
[1754001119654,6.71762263,173.18,173.09,3.31]
[1754001119862,6.71762263,173.18,173.04,108.3]
[1754001119863,5.35762263,173.2,173.11,3.31]
[1754001120363,113.02528325,173.27,173.18,5.35762263]
[1754001120364,1.36,173.27,173.18,5.35762263]
[1754001120659,1.36,173.27,173.19,3.31]
[1754001121259,5.7733,173.23,173.19,9.0846]
[1754001121461,1.36,173.27,173.2,3.31]
[1754001121661,393.33762263,173.3,173.21,3.31]
[1754001121856,394.69762263,173.3,173.21,3.31]
[1754001122262,389.34,173.3,173.21,3.31]
[1754001122466,5.35762263,173.32,173.26,3.31]
[1754001122663,1.36,173.31,173.26,3.31]
[1754001122860,5.7719,173.27,173.26,3.31]
[1754001123658,1.36,173.32,173.26,3.31]
[1754001123857,6.71762263,173.34,173.26,3.31]
[1754001124066,5.7717,173.28,173.26,3.31]
[1754001124262,5.7717,173.28,173.27,3.31]
[1754001124767,5.7713,173.29,173.28,3.31]
[1754001125264,1.34,173.29,173.14,432.14]
[1754001125461,1.34,173.29,173.19,5.35762263]
[1754001125783,1.34,173.29,173.2,3.31]
[1754001125963,5.7725,173.26,173.23,3.31]
[1754001126557,1.34,173.29,173.23,3.31]
[1754001126759,1.34,173.27,173.23,3.31]
[1754001126965,5.35762263,173.26,173.21,3.31]
[1754001127160,6.69762263,173.26,173.21,3.31]
[1754001127359,1.34,173.25,173.21,3.31]
[1754001127553,1.34,173.25,173.19,5.7744]
[1754001127554,5.7733,173.23,173.19,5.7744]
[1754001127761,1.34,173.25,173.18,3.31]
[1754001128467,1.34,173.25,173.15,5.35762263]
[1754001128665,1.34,173.25,173.19,3.31]
[1754001129062,5.7734,173.23,173.19,3.31]
[1754001130463,5.7734,173.23,173.2,3.31]
[1754001130860,1.34,173.3,173.22,9.0834]
[1754001131061,1.34,173.3,173.22,3.31]
[1754001131262,5.35762263,173.29,173.21,3.31]
[1754001131462,1.34,173.26,173.21,3.31]
[1754001131673,1.34,173.25,173.22,3.31]
[1754001131867,5.7732,173.24,173.22,3.31]
[1754001132169,1.34,173.25,173.22,3.31]
[1754001132764,5.7733,173.23,173.22,3.31]
[1754001133065,6.69762263,173.27,173.23,3.31]
[1754001133269,5.7738,173.22,173.18,9.0849]
[1754001133464,5.35762263,173.23,173.18,3.31]
[1754001133671,1.34,173.2,173.13,3.31]
[1754001133870,5.7748,173.19,173.14,3.31]
[1754001134165,1.34,173.2,173.14,3.31]
[1754001134967,5.7755,173.17,173.14,3.31]
[1754001135269,1.34,173.19,173.16,3.31]
[1754001136372,1.34,173.19,173.12,108.3]
[1754001136565,5.35762263,173.15,173.13,3.31]
[1754001136865,5.7762,173.15,173.09,5.7778]
[1754001137074,6.69762263,173.17,173.1,3.31]
[1754001137767,1.34,173.13,173.09,3.31]
[1754001137963,1.34,173.12,173.09,3.31]
[1754001138364,5.7776,173.1,173.06,3.31]
[1754001138566,1.34,173.12,173.06,3.31]
[1754001138767,1.34,173.12,173.06,9.0887]
[1754001138965,1.34,173.12,173.07,3.31]
[1754001139164,5.35762263,173.13,173.07,3.31]
[1754001139371,6.69762263,173.15,173.07,3.31]
[1754001139772,6.69762263,173.17,173.07,3.31]
[1754001140072,5.7758,173.16,173.11,5.7772]
[1754001140272,5.7758,173.16,173.13,3.31]
[1754001140462,6.69762263,173.19,173.15,3.31]
[1754001140663,1.34,173.19,173.15,3.31]
[1754001140971,5.35762263,173.24,173.15,3.31]
[1754001141269,1.34,173.23,173.15,3.31]
[1754001141472,5.7745,173.2,173.15,5.7758]
[1754001141675,1.34,173.21,173.17,3.31]
[1754001141866,1.34,173.2,173.17,3.31]
[1754001142074,1.34,173.2,173.05,158.71753359]
[1754001142075,6.69762263,173.2,173.14,3.31]
[1754001142672,5.7749,173.19,173.14,5.7762]
[1754001143069,5.7749,173.19,173.17,3.31]
[1754001143266,5.35762263,173.23,173.18,3.31]
[1754001143472,1.34,173.22,173.18,3.31]
[1754001143672,1.34,173.21,173.16,3.31]
[1754001143968,1.34,173.2,173.17,3.31]
[1754001144174,1.34,173.19,173.17,3.31]
[1754001144471,6.69762263,173.23,173.13,3.31]
[1754001145070,5.7741,173.21,173.16,5.7755]
[1754001145477,5.7741,173.21,173.19,3.31]
[1754001145668,6.69762263,173.23,173.19,3.31]
[1754001146274,5.7742,173.21,173.19,3.31]
[1754001146472,392.81545571,173.28,173.2,3.31]
[1754001146473,1.34,173.27,173.2,3.31]
[1754001146670,5.35762263,173.24,173.2,3.31]
[1754001146870,1.34,173.24,173.22,3.31]
[1754001147071,1.34,173.26,173.23,3.31]
[1754001147473,5.35762263,173.27,173.18,5.35762263]
[1754001147668,6.69762263,173.27,173.24,3.31]
[1754001148274,5.7726,173.25,173.24,3.31]
[1754001148874,388.06,173.28,173.2,3.25]
[1754001149076,1.35,173.26,173.2,3.25]
[1754001149473,5.7728,173.25,173.2,5.774]
[1754001149677,5.7728,173.25,173.21,3.25]
[1754001150079,393.41762263,173.28,173.21,3.25]
[1754001150276,388.06,173.28,173.21,3.25]
[1754001150478,5.7731,173.24,173.21,3.25]
[1754001150680,5.7731,173.24,173.18,5.35762263]
[1754001150681,1.35,173.26,173.22,3.25]
[1754001150878,1.35,173.25,173.22,3.25]
[1754001151084,5.7729,173.24,173.16,5.35762263]
[1754001151377,5.35762263,173.27,173.17,3.25]
[1754001151574,5.7748,173.19,173.15,5.7758]
[1754001151780,5.35762263,173.25,173.16,3.25]
[1754001151981,1.35,173.26,173.17,3.25]
[1754001152379,5.773,173.24,173.2,5.7742]
[1754001152581,5.773,173.24,173.21,3.25]
[1754001153079,5.7726,173.25,173.21,5.7738]
[1754001153384,5.7726,173.25,173.22,3.25]
[1754001153788,5.7724,173.26,173.23,3.25]
[1754001154180,1.35,173.31,173.23,3.25]
[1754001154580,6.70762263,173.31,173.23,3.25]
[1754001154778,1.35,173.3,173.23,3.25]
[1754001154979,1.35,173.28,173.23,3.25]
[1754001155188,5.35762263,173.29,173.23,3.25]
[1754001155376,5.35762263,173.29,173.18,5.35762263]
[1754001155377,1.35,173.27,173.24,3.25]
[1754001155778,1.35,173.26,173.22,3.25]
[1754001156080,6.70762263,173.27,173.19,3.25]
[1754001156379,5.7737,173.22,173.19,3.25]
[1754001156578,5.7737,173.22,173.18,5.7747]
[1754001156783,5.35762263,173.23,173.15,3.25]
[1754001156980,1.35,173.22,173.15,5.7758]
[1754001157179,5.35762263,173.23,173.16,3.25]
[1754001157384,5.7744,173.2,173.16,5.7755]
[1754001157585,5.35762263,173.23,173.18,3.25]
[1754001157887,1.35,173.2,173.13,3.25]
[1754001158090,5.7755,173.17,173.14,3.25]
[1754001158278,1.35,173.17,173.14,3.25]
[1754001158587,5.35762263,173.19,173.12,3.25]
[1754001158789,1.35,173.18,173.12,3.25]
[1754001159085,5.7762,173.15,173.11,3.25]
[1754001159282,1.35,173.15,173.12,3.25]
[1754001159689,1.35,173.14,173.07,3.25]
[1754001160378,1.35,173.14,173.08,5.778]
[1754001160577,16.30305571,173.22,173.11,3.25]
[1754001160782,1.35,173.15,173.05,3.25]
[1754001160988,5.7767,173.13,173.09,5.7777]
[1754001161185,5.35762263,173.16,173.05,3.25]
[1754001161381,5.35762263,173.14,173.08,5.778]
[1754001161684,5.35762263,173.14,173.05,3.25]
[1754001161885,5.35762263,173.2,173.04,393.39762263]
[1754001161886,5.7759,173.16,173.08,5.35762263]
[1754001162084,6.70762263,173.2,173.11,3.25]
[1754001162784,5.7749,173.18,173.14,5.776]
[1754001163178,5.7753,173.17,173.14,5.776]
[1754001163383,6.70762263,173.2,173.15,5.7758]
[1754001163784,5.7748,173.19,173.15,5.7758]
[1754001164281,5.7748,173.19,173.17,3.25]
[1754001164483,6.70762263,173.22,173.18,3.25]
[1754001164484,5.7743,173.2,173.18,3.25]
[1754001164688,388.12,173.25,173.17,3.25]
[1754001164689,5.35762263,173.24,173.17,3.25]
[1754001164887,1.35,173.23,173.17,3.25]
[1754001165088,5.7745,173.2,173.16,5.7755]
[1754001165290,5.7745,173.2,173.19,3.25]
[1754001165789,5.774,173.21,173.19,3.25]
[1754001165991,5.35762263,173.24,173.15,3.25]
[1754001166987,1.35,173.23,173.15,3.25]
[1754001167187,5.7734,173.23,173.19,5.7743]
[1754001167399,5.7734,173.23,173.2,3.25]
[1754001167690,1.35,173.24,173.21,3.25]
[1754001167892,1.35,173.24,173.15,3.25]
[1754001168295,1.35,173.24,173.19,3.25]
[1754001168589,1.35,173.22,173.19,3.25]
[1754001168792,7.1238,173.22,173.15,3.25]
[1754001168996,1.35,173.22,173.15,3.25]
[1754001170594,1.35,173.22,173.16,5.7754]
[1754001170786,1.35,173.22,173.18,3.25]
[1754001170994,1.35,173.19,173.16,3.25]
[1754001171195,6.70762263,173.18,173.1,3.25]
[1754001171793,5.7761,173.15,173.07,5.35762263]
[1754001172096,5.7761,173.15,173.11,3.25]
[1754001172397,5.7764,173.14,173.13,3.25]
[1754001172892,5.7768,173.13,173.08,5.7782]
[1754001173093,5.7768,173.13,173.11,3.25]
[1754001173393,5.7768,173.13,173.12,3.25]
[1754001174886,5.7763,173.14,173.13,3.25]
[1754001175689,5.35762263,173.16,173.07,5.35762263]
[1754001175898,5.35762263,173.18,173.08,3.25]
[1754001176290,5.7763,173.14,173.1,5.7775]
[1754001176496,5.7763,173.14,173.12,3.25]
[1754001177196,1.35,173.15,173.1,3.25]
[1754001177499,6.70762263,173.14,173.11,3.25]
[1754001177793,5.7769,173.13,173.05,5.35762263]
[1754001178000,5.7769,173.13,173.12,3.25]
[1754001179995,5.7774,173.11,173.1,3.24]
[1754001180197,1.36,173.13,173.05,3.24]
[1754001180402,16.90652263,173.2,173.07,3.24]
[1754001180403,6.71762263,173.16,173.07,3.24]
[1754001180795,6.71762263,173.16,173.07,9.0185]
[1754001181002,1.36,173.15,173.08,3.24]
[1754001181499,1.36,173.15,173.09,3.24]
[1754001182006,5.777,173.12,173.09,3.24]
[1754001182206,1.36,173.19,173.1,3.24]
[1754001182409,5.7768,173.13,173.1,3.24]
[1754001182596,1.36,173.16,173.1,3.24]
[1754001182805,11.5489,173.2,173.1,3.24]
[1754001182806,5.7773,173.11,173.1,3.24]
[1754001183410,1.36,173.18,173.12,3.24]
[1754001183903,5.776,173.15,173.12,3.24]
[1754001184403,1.36,173.2,173.12,3.24]
[1754001184608,5.35762263,173.17,173.12,3.24]
[1754001184804,5.35762263,173.15,173.05,5.35762263]
[1754001185106,5.7776,173.1,173.06,5.7787]
[1754001185606,5.7781,173.09,173.07,3.24]
[1754001185808,5.35762263,173.15,173.07,3.24]
[1754001186102,5.7765,173.14,173.07,8.59762263]
[1754001186303,1.36,173.18,173.1,3.24]
[1754001186503,6.71762263,173.2,173.1,3.24]
[1754001187202,6.71762263,173.2,173.12,3.24]
[1754001187801,5.7762,173.15,173.12,3.24]
[1754001188005,6.71762263,173.14,173.06,3.24]
[1754001188202,5.35762263,173.18,173.07,3.24]
[1754001188406,6.71762263,173.18,173.07,3.24]
[1754001188609,5.7769,173.13,173.1,3.24]
[1754001189502,6.71762263,173.18,173.1,5.7775]
[1754001189701,6.71762263,173.18,173.11,3.24]
[1754001190508,5.7763,173.14,173.11,3.24]
[1754001190901,6.71762263,173.18,173.11,3.24]
[1754001191107,6.71762263,173.18,173.11,5.777]
[1754001191301,6.71762263,173.18,173.12,3.24]
[1754001191703,5.776,173.15,173.12,3.24]
[1754001192102,1.36,173.18,173.13,3.24]
[1754001192599,1.36,173.17,173.1,3.24]
[1754001192809,5.7775,173.11,173.05,108.26]
[1754001193011,5.7775,173.11,173.05,152.26]
[1754001193213,5.7775,173.11,173.07,5.7784]
[1754001193504,6.71762263,173.14,173.08,3.24]
[1754001194207,5.7772,173.12,173.08,9.0182]
[1754001194410,1.36,173.14,173.09,3.24]
[1754001194606,1.36,173.14,173.1,3.24]
[1754001194805,5.7776,173.11,173.07,5.7784]
[1754001195006,5.7776,173.11,173.08,3.24]
[1754001195208,5.35762263,173.13,173.05,3.24]
[1754001195410,5.7789,173.06,173.05,3.24]
[1754001196012,1.36,173.08,173.05,3.24]
[1754001196013,5.7783,173.08,173.05,3.24]
[1754001196211,6.71762263,173.11,173.05,3.24]
[1754001196511,1.36,173.07,173.04,3.24]
[1754001196905,5.7795,173.05,173.01,5.7806]
[1754001197110,1.36,173.07,172.99,388.26]
[1754001197309,5.779,173.06,173.02,5.78]
[1754001197506,1.36,173.1,173.01,3.24]
[1754001198108,1.36,173.1,173.0,5.35762263]
[1754001198310,5.35762263,173.11,173.02,5.35762263]
[1754001198514,5.35762263,173.11,173.03,3.24]
[1754001198706,5.35762263,173.11,173.05,5.7791]
[1754001198910,1.36,173.1,173.07,3.24]
[1754001199114,1.36,173.1,173.08,3.24]
[1754001200315,5.7779,173.09,173.08,3.24]
[1754001200516,1.36,173.09,173.01,5.35762263]
[1754001200815,1.36,173.08,173.02,3.24]
[1754001201213,5.7794,173.05,173.02,9.0202]
[1754001201408,1.36,173.11,173.03,3.24]
[1754001201715,1.36,173.09,173.03,3.24]
[1754001201913,5.7788,173.07,173.04,3.24]
[1754001202215,5.7788,173.07,173.06,3.24]
[1754001204017,5.7785,173.08,172.99,501.87762263]
[1754001204312,4.75545571,173.16,172.99,501.87762263]
[1754001204313,5.35762263,173.12,173.02,3.24]
[1754001204516,5.35762263,173.12,173.03,5.35762263]
[1754001204720,1.36,173.13,173.04,3.24]
[1754001205615,1.36,173.13,173.08,3.24]
[1754001205818,1.36,173.15,173.08,3.24]
[1754001206010,1.36,173.15,173.09,5.7778]
[1754001206011,5.7772,173.12,173.09,5.7778]
[1754001206210,5.7772,173.12,173.1,3.24]
[1754001206811,5.7772,173.12,173.11,3.24]
[1754001208814,1.36,173.13,173.06,3.12]
[1754001209714,5.35762263,173.12,173.06,3.12]
[1754001209917,5.35762263,173.12,173.05,108.28]
[1754001210118,1.36,173.1,173.07,3.12]
[1754001210419,5.7779,173.09,173.06,3.12]
[1754001210914,5.7783,173.08,173.06,3.12]
[1754001211418,5.7786,173.07,173.06,3.12]
[1754001212113,5.7793,173.05,173.04,3.12]
[1754001212315,1.36,173.08,173.0,108.26]
[1754001212519,1.36,173.08,173.05,3.12]
[1754001212715,5.35762263,173.1,173.05,3.12]
[1754001212907,1.36,173.07,173.05,3.12]
[1754001213110,5.7789,173.06,173.05,3.12]
[1754001214114,5.7787,173.07,173.03,5.7797]
[1754001214421,6.71762263,173.12,173.02,3.12]
[1754001214617,5.7781,173.09,173.05,5.7789]
[1754001214816,5.7781,173.09,173.06,3.12]
[1754001215421,5.7781,173.09,173.07,3.12]
[1754001215613,5.35762263,173.14,173.07,3.12]
[1754001215820,6.71762263,173.14,173.05,5.35762263]
[1754001216020,6.71762263,173.14,173.08,3.12]
[1754001216221,5.7775,173.11,173.08,3.12]
[1754001216421,5.7775,173.11,173.08,8.8981]
[1754001216619,5.7775,173.11,173.08,5.7781]
[1754001216816,5.777,173.12,173.1,3.12]
[1754001217023,1.36,173.14,173.06,3.12]
[1754001217420,1.36,173.13,173.06,3.12]
[1754001217621,5.35762263,173.12,173.06,3.12]
[1754001217821,1.36,173.11,173.03,3.12]
[1754001218321,1.36,173.11,173.06,3.12]
[1754001218625,1.36,173.11,173.08,3.12]
[1754001219128,5.7779,173.09,173.08,3.12]
[1754001220024,1.36,173.1,173.02,3.12]
[1754001220418,5.35762263,173.12,173.06,5.7789]
[1754001220618,6.71762263,173.12,173.07,3.12]
[1754001221418,5.778,173.09,173.07,3.12]
[1754001222120,5.7775,173.11,173.08,8.8982]
[1754001222425,5.7775,173.11,173.09,3.12]
[1754001222619,1.36,173.15,173.09,3.12]
[1754001222823,6.71762263,173.16,173.1,3.12]
[1754001223224,1.36,173.18,173.1,3.12]
[1754001223423,5.35762263,173.2,173.09,5.35762263]
[1754001223622,1.36,173.19,173.1,3.12]
[1754001223918,5.7758,173.16,173.13,3.12]
[1754001224130,1.36,173.23,173.12,3.12]
[1754001224425,1.36,173.23,173.11,5.35762263]
[1754001224426,1.36,173.21,173.15,3.12]
[1754001225324,5.7751,173.18,173.15,5.7759]
[1754001225522,5.7751,173.18,173.17,3.12]
[1754001227926,5.35762263,173.22,173.13,5.35762263]
[1754001228129,1.36,173.19,173.14,3.12]
[1754001228720,5.7759,173.15,173.14,3.12]
[1754001230530,5.7757,173.16,173.14,3.12]
[1754001231828,1.36,173.2,173.14,3.12]
[1754001232029,5.35762263,173.22,173.14,3.12]
[1754001232228,1.36,173.22,173.14,3.12]
[1754001232532,1.36,173.22,173.17,3.12]
[1754001233432,5.7744,173.2,173.17,5.7751]
[1754001233630,5.7744,173.2,173.18,3.12]
[1754001233829,1.36,173.24,173.18,3.12]
[1754001234029,1.36,173.26,173.19,3.12]
[1754001235125,1.36,173.26,173.19,8.8945]
[1754001235334,1.36,173.26,173.17,5.35762263]
[1754001235335,1.36,173.26,173.2,3.12]
[1754001235936,5.7735,173.23,173.2,3.12]
[1754001236538,5.7735,173.23,173.21,3.12]
[1754001236738,5.35762263,173.26,173.11,44.0]
[1754001236939,1.36,173.25,173.16,3.12]
[1754001237239,5.7741,173.21,173.18,5.7748]
[1754001237455,5.7741,173.21,173.19,3.12]
[1754001237640,1.36,173.25,173.19,3.12]
[1754001237838,5.35762263,173.26,173.17,5.7752]
[1754001238042,1.36,173.23,173.2,3.12]
[1754001238242,5.35762263,173.24,173.1,50.45753359]
[1754001238447,1.35,173.2,173.16,3.2]
[1754001238742,1.35,173.2,173.11,5.35762263]
[1754001238743,1.35,173.2,173.18,3.2]
[1754001238941,5.7746,173.19,173.18,3.2]
[1754001240242,5.7744,173.2,173.18,3.2]
[1754001240548,5.35762263,173.26,173.16,3.2]
[1754001240735,1.35,173.25,173.16,3.2]
[1754001240941,5.7741,173.21,173.18,3.2]
[1754001241346,5.7741,173.21,173.18,8.9748]
[1754001241547,1.35,173.25,173.1,44.0]
[1754001241755,1.35,173.25,173.15,5.35762263]
[1754001242246,1.35,173.25,173.16,3.2]
[1754001242643,5.35762263,173.24,173.16,3.2]
[1754001242843,5.35762263,173.22,173.13,3.2]
[1754001243043,1.35,173.21,173.13,3.2]
[1754001244054,1.35,173.21,173.14,3.2]
[1754001244254,5.35762263,173.24,173.13,5.35762263]
[1754001244442,5.35762263,173.24,173.16,3.2]
[1754001244951,5.7742,173.21,173.17,5.7752]
[1754001245146,5.7742,173.21,173.18,3.2]
[1754001245346,1.35,173.24,173.18,3.2]
[1754001245548,5.35762263,173.21,173.15,3.2]
[1754001245742,1.35,173.2,173.15,3.2]
[1754001245942,1.35,173.19,173.16,3.2]
[1754001246749,5.7753,173.17,173.16,3.2]
[1754001247652,5.7751,173.18,173.16,3.2]
[1754001248047,6.70762263,173.21,173.16,3.2]
[1754001248256,5.7752,173.18,173.16,3.2]
[1754001248448,6.70762263,173.21,173.07,44.0]
[1754001248449,6.70762263,173.21,173.08,3.2]
[1754001248652,1.35,173.2,173.11,5.35762263]
[1754001248854,5.7755,173.17,173.15,3.2]
[1754001249750,5.7756,173.16,173.15,3.2]
[1754001249949,6.70762263,173.21,173.15,3.2]
[1754001251353,5.7754,173.17,173.15,3.2]
[1754001252153,5.7756,173.16,173.15,3.2]
[1754001253851,1.35,173.16,173.11,3.2]
[1754001254056,5.35762263,173.14,173.03,14.12999561]
[1754001254358,6.70762263,173.16,173.11,3.2]
[1754001254849,1.35,173.15,173.06,5.35762263]
[1754001255050,1.35,173.15,173.07,3.2]
[1754001255463,5.7771,173.12,173.09,3.2]
[1754001255660,1.35,173.15,173.09,3.2]
[1754001255863,5.7776,173.1,173.09,3.2]
[1754001257965,5.35762263,173.14,173.04,5.35762263]
[1754001258166,6.70762263,173.14,173.05,3.2]
[1754001258375,6.70762263,173.14,173.08,3.2]
[1754001261064,5.7774,173.11,173.08,3.2]
[1754001261870,6.70762263,173.16,173.08,3.2]
[1754001262466,5.7771,173.12,173.08,3.2]
[1754001262771,1.35,173.15,173.08,3.2]
[1754001262968,1.35,173.19,173.11,5.35762263]
[1754001263168,5.35762263,173.24,173.14,3.2]
[1754001263363,5.35762263,173.2,173.14,3.2]
[1754001263561,1.35,173.17,173.1,3.2]
[1754001264065,5.7768,173.13,173.1,3.2]
[1754001264571,1.35,173.16,173.1,3.2]
[1754001264769,5.7771,173.12,173.1,3.2]
[1754001264972,1.35,173.16,173.1,3.2]
[1754001265168,5.7768,173.13,173.1,3.2]
[1754001265570,1.35,173.16,173.1,3.2]
[1754001265769,6.70762263,173.16,173.1,3.2]
[1754001265972,1.35,173.15,173.1,3.2]
[1754001266171,1.35,173.14,173.11,3.2]
[1754001266576,5.7772,173.12,173.11,3.2]
[1754001268374,1.35,173.2,173.11,3.2]
[1754001268576,1.35,173.2,173.12,5.35762263]
[1754001268875,5.7756,173.16,173.14,3.08]
[1754001269078,1.35,173.22,173.14,8.43762263]
[1754001269272,1.35,173.22,173.15,3.08]
[1754001269470,1.35,173.25,173.15,3.08]
[1754001269867,1.35,173.25,173.17,3.08]
[1754001270869,1.35,173.25,173.19,3.08]
[1754001271272,1.35,173.28,173.19,8.8544]
[1754001271473,1.35,173.28,173.19,5.7744]
[1754001271675,1.35,173.28,173.2,3.08]
[1754001272278,1.35,173.26,173.2,3.08]
[1754001272773,5.7739,173.21,173.2,3.08]
[1754001275981,1.35,173.23,173.17,3.08]
[1754001276586,5.7749,173.18,173.17,3.08]
[1754001276878,1.35,173.19,173.13,3.08]
[1754001277076,5.7754,173.17,173.14,3.08]
[1754001277479,6.70762263,173.21,173.14,3.08]
[1754001277480,1.35,173.2,173.14,3.08]
[1754001278378,5.7759,173.15,173.14,3.08]
[1754001280079,5.7759,173.15,173.08,113.45762263]
[1754001280080,5.7769,173.12,173.08,108.1]
[1754001280280,1.35,173.15,173.08,108.1]
[1754001280783,1.35,173.1,173.07,3.08]